[Event "Titled Tuesday Blitz September 14 2021"]
[White "Jobava, Baadur"]
[Black "Kezin, Roman"]
[WhiteFideId "13601520"]
[BlackFideId "24124621"]
[WhiteElo "2731"]
[BlackElo "2570"]
[Result "1-0"]
[Round "10"]
[TimeControl "180+1"]
[Date "2021.09.15"]
[WhiteClock "0:00:21"]
[BlackClock "0:00:05"]

1. e4 {[%clk 0:02:56]}  c5 {[%clk 0:02:59]} 2. d4 {[%clk 0:02:56]}  cxd4 {[%clk 0:02:59]} 3. c3 {[%clk 0:02:57]}  dxc3 {[%clk 0:03:00]} 4. Nxc3 {[%clk 0:02:58]}  Nc6 {[%clk 0:03:00]} 5. Nf3 {[%clk 0:02:59]}  e6 {[%clk 0:03:01]} 6. Bc4 {[%clk 0:02:59]}  a6 {[%clk 0:03:01]} 7. O-O {[%clk 0:02:59]}  Nge7 {[%clk 0:03:02]} 8. Re1 {[%clk 0:02:58]}  Ng6 {[%clk 0:03:01]} 9. e5 {[%clk 0:02:56]}  Be7 {[%clk 0:02:36]} 10. g3 {[%clk 0:02:55]}  O-O {[%clk 0:02:34]} 11. h4 {[%clk 0:02:55]}  f6 {[%clk 0:02:35]} 12. exf6 {[%clk 0:02:53]}  Bxf6 {[%clk 0:02:35]} 13. Bg5 {[%clk 0:02:41]}  h6 {[%clk 0:02:18]} 14. Qd3 {[%clk 0:02:34]}  Nce5 {[%clk 0:01:46]} 15. Nxe5 {[%clk 0:02:10]}  Nxe5 {[%clk 0:01:45]} 16. Rxe5 {[%clk 0:02:07]}  hxg5 {[%clk 0:01:45]} 17. Rae1 {[%clk 0:01:51]}  Bxe5 {[%clk 0:01:32]} 18. Rxe5 {[%clk 0:01:52]}  Qf6 {[%clk 0:01:32]} 19. f4 {[%clk 0:01:39]}  gxf4 {[%clk 0:01:23]} 20. Rh5 {[%clk 0:01:39]}  fxg3 {[%clk 0:00:59]} 21. Qh7+ {[%clk 0:01:38]}  Kf7 {[%clk 0:00:59]} 22. Rf5 {[%clk 0:01:38]}  d5 {[%clk 0:00:53]} 23. Rxf6+ {[%clk 0:01:39]}  Kxf6 {[%clk 0:00:54]} 24. Bd3 {[%clk 0:01:35]}  Bd7 {[%clk 0:00:51]} 25. Qg6+ {[%clk 0:01:31]}  Ke7 {[%clk 0:00:45]} 26. Qxg7+ {[%clk 0:01:32]}  Kd6 {[%clk 0:00:39]} 27. Qxg3+ {[%clk 0:01:32]}  e5 {[%clk 0:00:40]} 28. h5 {[%clk 0:01:27]}  Rf4 {[%clk 0:00:40]} 29. Be2 {[%clk 0:01:02]}  d4 {[%clk 0:00:39]} 30. Qg6+ {[%clk 0:01:02]}  Be6 {[%clk 0:00:28]} 31. Ne4+ {[%clk 0:01:02]}  Kd5 {[%clk 0:00:27]} 32. Nf6+ {[%clk 0:00:37]}  Kd6 {[%clk 0:00:28]} 33. h6 {[%clk 0:00:33]}  Rf8 {[%clk 0:00:28]} 34. h7 {[%clk 0:00:29]}  Rh4 {[%clk 0:00:10]} 35. Ne4+ {[%clk 0:00:24]}  Kd5 {[%clk 0:00:09]} 36. Ng5 {[%clk 0:00:21]}  Bf5 {[%clk 0:00:05]} 37. Qg8+ {[%clk 0:00:21]} 1-0


[Site "https://www.chess.com"]

[Event "Titled Tuesday Blitz September 14 2021"]
[White "Khusnutdinov, Rustam"]
[Black "Bluebaum, Matthias"]
[WhiteFideId "13701703"]
[BlackFideId "24651516"]
[WhiteElo "2571"]
[BlackElo "2681"]
[Result "1-0"]
[Round "10"]
[TimeControl "180+1"]
[Date "2021.09.15"]
[WhiteClock "0:00:04"]
[BlackClock "0:00:16"]

1. d4 {[%clk 0:03:00]}  Nf6 {[%clk 0:02:59]} 2. c4 {[%clk 0:03:00]}  e6 {[%clk 0:03:00]} 3. Nc3 {[%clk 0:03:00]}  d5 {[%clk 0:02:59]} 4. Nf3 {[%clk 0:02:59]}  Nbd7 {[%clk 0:02:59]} 5. cxd5 {[%clk 0:02:44]}  exd5 {[%clk 0:03:00]} 6. Bg5 {[%clk 0:02:45]}  h6 {[%clk 0:02:56]} 7. Bh4 {[%clk 0:02:44]}  c6 {[%clk 0:02:56]} 8. e3 {[%clk 0:02:44]}  Be7 {[%clk 0:02:56]} 9. Bd3 {[%clk 0:02:43]}  O-O {[%clk 0:02:56]} 10. Qc2 {[%clk 0:02:41]}  Re8 {[%clk 0:02:52]} 11. O-O-O {[%clk 0:02:38]}  b5 {[%clk 0:02:46]} 12. Kb1 {[%clk 0:02:34]}  a5 {[%clk 0:02:43]} 13. g4 {[%clk 0:02:14]}  a4 {[%clk 0:02:39]} 14. g5 {[%clk 0:02:11]}  hxg5 {[%clk 0:02:40]} 15. Nxg5 {[%clk 0:02:10]}  Nb6 {[%clk 0:02:31]} 16. Rhg1 {[%clk 0:01:43]}  b4 {[%clk 0:02:16]} 17. Bh7+ {[%clk 0:01:17]}  Kf8 {[%clk 0:02:14]} 18. Nxf7 {[%clk 0:00:46]}  Kxf7 {[%clk 0:01:10]} 19. Qg6+ {[%clk 0:00:45]}  Ke6 {[%clk 0:01:10]} 20. Qf5+ {[%clk 0:00:44]}  Kf7 {[%clk 0:01:11]} 21. Qg6+ {[%clk 0:00:21]}  Ke6 {[%clk 0:01:11]} 22. Qf5+ {[%clk 0:00:16]}  Kf7 {[%clk 0:01:11]} 23. Rxg7+ {[%clk 0:00:06]}  Kxg7 {[%clk 0:01:12]} 24. Rg1+ {[%clk 0:00:06]}  Kf7 {[%clk 0:00:53]} 25. Qg6+ {[%clk 0:00:06]}  Ke6 {[%clk 0:00:54]} 26. Qf5+ {[%clk 0:00:06]}  Kf7 {[%clk 0:00:54]} 27. Bg6+ {[%clk 0:00:03]}  Kf8 {[%clk 0:00:44]} 28. Qf4 {[%clk 0:00:04]}  Bd6 {[%clk 0:00:16]} 29. Qh6+ {[%clk 0:00:04]}  Ke7 {[%clk 0:00:16]} 30. Qg7+ {[%clk 0:00:04]}  Ke6 {[%clk 0:00:16]} 31. Qf7# {[%clk 0:00:04]} 1-0


[Site "https://www.chess.com"]

[Event "Titled Tuesday Blitz September 14 2021"]
[White "Maly, Alexey"]
[Black "Bortnyk, Olexandr"]
[WhiteFideId "14103184"]
[BlackFideId "14120828"]
[WhiteElo "2250"]
[BlackElo "2723"]
[Result "0-1"]
[Round "10"]
[TimeControl "180+1"]
[Date "2021.09.15"]
[WhiteClock "0:00:10"]
[BlackClock "0:00:12"]

1. d4 {[%clk 0:03:00]}  a6 {[%clk 0:02:57]} 2. Nf3 {[%clk 0:02:58]}  d5 {[%clk 0:02:56]} 3. g3 {[%clk 0:02:56]}  Nc6 {[%clk 0:02:54]} 4. Bg2 {[%clk 0:02:55]}  Bf5 {[%clk 0:02:54]} 5. O-O {[%clk 0:02:54]}  e6 {[%clk 0:02:52]} 6. b3 {[%clk 0:02:54]}  Nf6 {[%clk 0:02:51]} 7. Bb2 {[%clk 0:02:54]}  Be7 {[%clk 0:02:43]} 8. Nbd2 {[%clk 0:02:54]}  O-O {[%clk 0:02:44]} 9. c4 {[%clk 0:02:54]}  Ne4 {[%clk 0:02:36]} 10. Nxe4 {[%clk 0:02:47]}  dxe4 {[%clk 0:02:31]} 11. Ne5 {[%clk 0:02:38]}  Nxe5 {[%clk 0:02:30]} 12. dxe5 {[%clk 0:02:39]}  Qxd1 {[%clk 0:02:24]} 13. Rfxd1 {[%clk 0:02:34]}  Rfd8 {[%clk 0:02:25]} 14. Kf1 {[%clk 0:02:29]}  Kf8 {[%clk 0:02:19]} 15. Bc3 {[%clk 0:02:28]}  Ba3 {[%clk 0:02:04]} 16. Ke1 {[%clk 0:02:25]}  b5 {[%clk 0:02:01]} 17. Rxd8+ {[%clk 0:02:20]}  Rxd8 {[%clk 0:02:02]} 18. Rd1 {[%clk 0:02:20]}  Ke7 {[%clk 0:01:16]} 19. Rxd8 {[%clk 0:02:18]}  Kxd8 {[%clk 0:01:17]} 20. Kd2 {[%clk 0:02:13]}  Kc8 {[%clk 0:01:00]} 21. Ke3 {[%clk 0:02:02]}  Bc1+ {[%clk 0:00:27]} 22. Kd4 {[%clk 0:02:02]}  e3 {[%clk 0:00:07]} 23. fxe3 {[%clk 0:01:54]}  Bb1 {[%clk 0:00:08]} 24. cxb5 {[%clk 0:01:46]}  axb5 {[%clk 0:00:09]} 25. a4 {[%clk 0:01:46]}  Bc2 {[%clk 0:00:09]} 26. axb5 {[%clk 0:01:43]}  Bxb3 {[%clk 0:00:09]} 27. Bc6 {[%clk 0:01:36]}  Kd8 {[%clk 0:00:09]} 28. Kd3 {[%clk 0:01:27]}  Ba3 {[%clk 0:00:07]} 29. Bd4 {[%clk 0:01:26]}  Bb4 {[%clk 0:00:07]} 30. e4 {[%clk 0:01:13]}  h6 {[%clk 0:00:03]} 31. Ke3 {[%clk 0:01:03]}  Ba3 {[%clk 0:00:03]} 32. Kf3 {[%clk 0:01:02]}  Bd1 {[%clk 0:00:02]} 33. Kf2 {[%clk 0:00:59]}  Bb4 {[%clk 0:00:02]} 34. b6 {[%clk 0:00:54]}  cxb6 {[%clk 0:00:03]} 35. Bxb6+ {[%clk 0:00:54]}  Ke7 {[%clk 0:00:03]} 36. Bd4 {[%clk 0:00:53]}  Bb3 {[%clk 0:00:03]} 37. Kf3 {[%clk 0:00:53]}  Bc4 {[%clk 0:00:04]} 38. Ke3 {[%clk 0:00:52]}  Ba3 {[%clk 0:00:04]} 39. Kf3 {[%clk 0:00:52]}  Bb4 {[%clk 0:00:04]} 40. h4 {[%clk 0:00:51]}  Kf8 {[%clk 0:00:04]} 41. Ke3 {[%clk 0:00:50]}  Kg8 {[%clk 0:00:04]} 42. Kf3 {[%clk 0:00:50]}  Be1 {[%clk 0:00:04]} 43. Ba4 {[%clk 0:00:45]}  Ba5 {[%clk 0:00:04]} 44. Bc2 {[%clk 0:00:44]}  Ba2 {[%clk 0:00:04]} 45. Bd3 {[%clk 0:00:44]}  Bb3 {[%clk 0:00:05]} 46. Bb1 {[%clk 0:00:44]}  Be1 {[%clk 0:00:05]} 47. Bd3 {[%clk 0:00:43]}  g6 {[%clk 0:00:05]} 48. Bb1 {[%clk 0:00:42]}  Ba4 {[%clk 0:00:05]} 49. Bd3 {[%clk 0:00:42]}  Kf8 {[%clk 0:00:05]} 50. Bc5+ {[%clk 0:00:42]}  Ke8 {[%clk 0:00:05]} 51. Bd6 {[%clk 0:00:39]}  h5 {[%clk 0:00:05]} 52. Bc5 {[%clk 0:00:36]}  Kd7 {[%clk 0:00:05]} 53. Bf2 {[%clk 0:00:37]}  Bc3 {[%clk 0:00:05]} 54. Kf4 {[%clk 0:00:36]}  Kc6 {[%clk 0:00:05]} 55. Be3 {[%clk 0:00:27]}  Bb3 {[%clk 0:00:05]} 56. Bf2 {[%clk 0:00:24]}  Ba2 {[%clk 0:00:05]} 57. Be3 {[%clk 0:00:24]}  Bb3 {[%clk 0:00:06]} 58. Bf2 {[%clk 0:00:25]}  Ba4 {[%clk 0:00:07]} 59. Be3 {[%clk 0:00:25]}  Bb5 {[%clk 0:00:05]} 60. Bf2 {[%clk 0:00:21]}  Bb2 {[%clk 0:00:05]} 61. Be3 {[%clk 0:00:21]}  Ba4 {[%clk 0:00:05]} 62. Bf2 {[%clk 0:00:21]}  Kd7 {[%clk 0:00:06]} 63. Be3 {[%clk 0:00:22]}  Ke8 {[%clk 0:00:06]} 64. Bf2 {[%clk 0:00:22]}  Kf8 {[%clk 0:00:07]} 65. Be3 {[%clk 0:00:23]}  Kg7 {[%clk 0:00:07]} 66. Bf2 {[%clk 0:00:23]}  Bc3 {[%clk 0:00:06]} 67. Be3 {[%clk 0:00:23]}  Be1 {[%clk 0:00:07]} 68. Kf3 {[%clk 0:00:22]}  Bc6 {[%clk 0:00:05]} 69. Bf2 {[%clk 0:00:22]}  Bc3 {[%clk 0:00:04]} 70. Kf4 {[%clk 0:00:21]}  Bd7 {[%clk 0:00:04]} 71. Be3 {[%clk 0:00:21]}  Be8 {[%clk 0:00:04]} 72. Bc5 {[%clk 0:00:18]}  Ba4 {[%clk 0:00:04]} 73. Be7 {[%clk 0:00:19]}  Bd2+ {[%clk 0:00:04]} 74. Kf3 {[%clk 0:00:18]}  Bc3 {[%clk 0:00:04]} 75. Bf6+ {[%clk 0:00:19]}  Kf8 {[%clk 0:00:04]} 76. Ke3 {[%clk 0:00:19]}  Ke8 {[%clk 0:00:04]} 77. Kf3 {[%clk 0:00:19]}  Kd7 {[%clk 0:00:05]} 78. Ke3 {[%clk 0:00:19]}  Kc6 {[%clk 0:00:05]} 79. Kf3 {[%clk 0:00:20]}  Bd4 {[%clk 0:00:05]} 80. Be7 {[%clk 0:00:19]}  Bxe5 {[%clk 0:00:05]} 81. Bg5 {[%clk 0:00:19]}  Kd7 {[%clk 0:00:04]} 82. Bf4 {[%clk 0:00:19]}  Bc3 {[%clk 0:00:05]} 83. g4 {[%clk 0:00:17]}  hxg4+ {[%clk 0:00:04]} 84. Kxg4 {[%clk 0:00:18]}  Be1 {[%clk 0:00:02]} 85. h5 {[%clk 0:00:17]}  gxh5+ {[%clk 0:00:03]} 86. Kxh5 {[%clk 0:00:18]}  Bc3 {[%clk 0:00:04]} 87. Kg4 {[%clk 0:00:18]}  Bd4 {[%clk 0:00:04]} 88. Kf3 {[%clk 0:00:18]}  Bc6 {[%clk 0:00:05]} 89. Kg3 {[%clk 0:00:17]}  Bc3 {[%clk 0:00:04]} 90. Be3 {[%clk 0:00:17]}  Be5+ {[%clk 0:00:04]} 91. Bf4 {[%clk 0:00:17]}  Bf6 {[%clk 0:00:04]} 92. Kf3 {[%clk 0:00:17]}  Bh4 {[%clk 0:00:05]} 93. Bg3 {[%clk 0:00:17]}  Bd8 {[%clk 0:00:05]} 94. Kg4 {[%clk 0:00:16]}  Ba5 {[%clk 0:00:05]} 95. Bf4 {[%clk 0:00:16]}  Bc3 {[%clk 0:00:05]} 96. Kg5 {[%clk 0:00:16]}  Ke7 {[%clk 0:00:05]} 97. Be3 {[%clk 0:00:15]}  Be5 {[%clk 0:00:05]} 98. Bc5+ {[%clk 0:00:15]}  Ke8 {[%clk 0:00:05]} 99. Be3 {[%clk 0:00:15]}  Bc3 {[%clk 0:00:05]} 100. Bc5 {[%clk 0:00:15]}  Ba4 {[%clk 0:00:05]} 101. Be3 {[%clk 0:00:15]}  Bd7 {[%clk 0:00:05]} 102. Bc5 {[%clk 0:00:15]}  Bd2+ {[%clk 0:00:05]} 103. Kg4 {[%clk 0:00:14]}  Bh6 {[%clk 0:00:05]} 104. Kf3 {[%clk 0:00:14]}  Bc6 {[%clk 0:00:05]} 105. Be3 {[%clk 0:00:13]}  Bg7 {[%clk 0:00:06]} 106. Bc5 {[%clk 0:00:13]}  Be5 {[%clk 0:00:06]} 107. Ke3 {[%clk 0:00:13]}  Kd7 {[%clk 0:00:05]} 108. Bb4 {[%clk 0:00:13]}  Bh2 {[%clk 0:00:05]} 109. Ba3 {[%clk 0:00:12]}  Bc7 {[%clk 0:00:05]} 110. Bb4 {[%clk 0:00:12]}  e5 {[%clk 0:00:05]} 111. Bc4 {[%clk 0:00:11]}  f6 {[%clk 0:00:04]} 112. Bd5 {[%clk 0:00:11]}  Bb6+ {[%clk 0:00:04]} 113. Kf3 {[%clk 0:00:10]}  Bb5 {[%clk 0:00:05]} 114. Bf8 {[%clk 0:00:09]}  Ba4 {[%clk 0:00:06]} 115. Bh6 {[%clk 0:00:09]}  Ke7 {[%clk 0:00:07]} 116. Be3 {[%clk 0:00:08]}  Bc7 {[%clk 0:00:07]} 117. Bd2 {[%clk 0:00:08]}  Bd6 {[%clk 0:00:07]} 118. Bc3 {[%clk 0:00:09]}  Bc5 {[%clk 0:00:07]} 119. Bd2 {[%clk 0:00:09]}  Ba3 {[%clk 0:00:07]} 120. Bc3 {[%clk 0:00:09]}  Kf8 {[%clk 0:00:07]} 121. Bd2 {[%clk 0:00:09]}  Kg7 {[%clk 0:00:08]} 122. Be3 {[%clk 0:00:09]}  Kg6 {[%clk 0:00:08]} 123. Bd2 {[%clk 0:00:09]}  Bd7 {[%clk 0:00:08]} 124. Be3 {[%clk 0:00:09]}  Kh5 {[%clk 0:00:09]} 125. Bd2 {[%clk 0:00:09]}  Bg4+ {[%clk 0:00:09]} 126. Kf2 {[%clk 0:00:10]}  Kh4 {[%clk 0:00:08]} 127. Bh6 {[%clk 0:00:08]}  Bc5+ {[%clk 0:00:06]} 128. e3 {[%clk 0:00:09]}  Be7 {[%clk 0:00:06]} 129. Bf7 {[%clk 0:00:06]}  Bh5 {[%clk 0:00:04]} 130. Be6 {[%clk 0:00:07]}  Be8 {[%clk 0:00:03]} 131. Bg7 {[%clk 0:00:03]}  Kg5 {[%clk 0:00:03]} 132. Bf5 {[%clk 0:00:04]}  Bg6 {[%clk 0:00:03]} 133. Bh8 {[%clk 0:00:03]}  Bxf5 {[%clk 0:00:03]} 134. exf5 {[%clk 0:00:04]}  Kxf5 {[%clk 0:00:04]} 135. Bg7 {[%clk 0:00:04]}  Kg6 {[%clk 0:00:04]} 136. Bh8 {[%clk 0:00:03]}  Kh7 {[%clk 0:00:04]} 137. Bxf6 {[%clk 0:00:02]}  Bxf6 {[%clk 0:00:05]} 138. Kf3 {[%clk 0:00:03]}  Kg6 {[%clk 0:00:06]} 139. Ke4 {[%clk 0:00:03]}  Bg7 {[%clk 0:00:06]} 140. Kf3 {[%clk 0:00:03]}  Kf5 {[%clk 0:00:07]} 141. e4+ {[%clk 0:00:03]}  Kg5 {[%clk 0:00:07]} 142. Ke3 {[%clk 0:00:04]}  Kg4 {[%clk 0:00:07]} 143. Kd3 {[%clk 0:00:04]}  Kf3 {[%clk 0:00:08]} 144. Kd2 {[%clk 0:00:05]}  Kxe4 {[%clk 0:00:09]} 145. Ke2 {[%clk 0:00:05]}  Kd4 {[%clk 0:00:09]} 146. Kf2 {[%clk 0:00:06]}  e4 {[%clk 0:00:10]} 147. Ke2 {[%clk 0:00:07]}  e3 {[%clk 0:00:11]} 148. Ke1 {[%clk 0:00:08]}  Kd3 {[%clk 0:00:11]} 149. Kd1 {[%clk 0:00:09]}  e2+ {[%clk 0:00:12]} 150. Ke1 {[%clk 0:00:10]}  Bc3+ {[%clk 0:00:12]} 0-1


[Site "https://www.chess.com"]

[Event "Titled Tuesday Blitz September 14 2021"]
[White "Mickiewicz, Piotr"]
[Black "Wagner, Dennis"]
[WhiteFideId "1114891"]
[BlackFideId "24650684"]
[WhiteElo "2251"]
[BlackElo "2355"]
[Result "0-1"]
[Round "10"]
[TimeControl "180+1"]
[Date "2021.09.15"]
[WhiteClock "0:00:14"]
[BlackClock "0:00:33"]

1. c4 {[%clk 0:03:00]}  e6 {[%clk 0:02:59]} 2. Nf3 {[%clk 0:03:00]}  d5 {[%clk 0:02:59]} 3. g3 {[%clk 0:03:00]}  dxc4 {[%clk 0:02:59]} 4. Qa4+ {[%clk 0:02:59]}  Bd7 {[%clk 0:02:58]} 5. Qxc4 {[%clk 0:02:58]}  c5 {[%clk 0:02:59]} 6. Ne5 {[%clk 0:02:57]}  Nc6 {[%clk 0:02:59]} 7. Nxd7 {[%clk 0:02:57]}  Qxd7 {[%clk 0:02:59]} 8. Bg2 {[%clk 0:02:56]}  Nf6 {[%clk 0:03:00]} 9. O-O {[%clk 0:02:55]}  Be7 {[%clk 0:03:01]} 10. d3 {[%clk 0:02:55]}  O-O {[%clk 0:03:01]} 11. Nc3 {[%clk 0:02:43]}  a6 {[%clk 0:03:01]} 12. Bg5 {[%clk 0:02:17]}  b5 {[%clk 0:02:58]} 13. Qb3 {[%clk 0:02:06]}  Rac8 {[%clk 0:02:55]} 14. Rfc1 {[%clk 0:02:03]}  Nd4 {[%clk 0:02:52]} 15. Qd1 {[%clk 0:02:03]}  Rfd8 {[%clk 0:02:50]} 16. h3 {[%clk 0:01:38]}  h6 {[%clk 0:02:50]} 17. Be3 {[%clk 0:01:37]}  Nf5 {[%clk 0:02:48]} 18. Bf4 {[%clk 0:01:24]}  Nh5 {[%clk 0:02:45]} 19. Bd2 {[%clk 0:01:17]}  Nhxg3 {[%clk 0:02:42]} 20. fxg3 {[%clk 0:01:16]}  Qd4+ {[%clk 0:02:40]} 21. Kh2 {[%clk 0:01:14]}  Nxg3 {[%clk 0:02:25]} 22. e3 {[%clk 0:00:54]}  Qe5 {[%clk 0:02:17]} 23. Kg1 {[%clk 0:00:42]}  Rxd3 {[%clk 0:02:15]} 24. Qe1 {[%clk 0:00:42]}  Bd6 {[%clk 0:01:53]} 25. Rc2 {[%clk 0:00:41]}  Nf5 {[%clk 0:01:47]} 26. Nd1 {[%clk 0:00:39]}  Qh2+ {[%clk 0:01:47]} 27. Kf1 {[%clk 0:00:37]}  Ng3+ {[%clk 0:01:44]} 28. Kf2 {[%clk 0:00:36]}  Ne4+ {[%clk 0:01:45]} 29. Kf1 {[%clk 0:00:36]}  Bg3 {[%clk 0:00:48]} 30. Qe2 {[%clk 0:00:36]}  Bf2 {[%clk 0:00:39]} 31. Qf3 {[%clk 0:00:17]}  Qg1+ {[%clk 0:00:36]} 32. Ke2 {[%clk 0:00:17]}  Rxd2+ {[%clk 0:00:30]} 33. Rxd2 {[%clk 0:00:16]}  Qe1+ {[%clk 0:00:31]} 34. Kd3 {[%clk 0:00:15]}  Qxd2+ {[%clk 0:00:31]} 35. Kxe4 {[%clk 0:00:14]}  Qd5+ {[%clk 0:00:32]} 36. Kf4 {[%clk 0:00:14]}  Qf5# {[%clk 0:00:33]} 0-1


[Site "https://www.chess.com"]

[Event "Titled Tuesday Blitz September 14 2021"]
[White "Murzin, Volodar"]
[Black "Aldokhin, Ivan"]
[WhiteFideId "44155573"]
[BlackFideId "24115720"]
[WhiteElo "2514"]
[BlackElo "2265"]
[Result "1-0"]
[Round "10"]
[TimeControl "180+1"]
[Date "2021.09.15"]
[WhiteClock "0:00:49"]
[BlackClock "0:00:02"]

1. e4 {[%clk 0:03:00]}  c5 {[%clk 0:02:59]} 2. Nf3 {[%clk 0:02:59]}  e6 {[%clk 0:02:59]} 3. g3 {[%clk 0:02:58]}  Nf6 {[%clk 0:02:56]} 4. Qe2 {[%clk 0:02:55]}  Nc6 {[%clk 0:02:50]} 5. Bg2 {[%clk 0:02:54]}  d6 {[%clk 0:02:43]} 6. O-O {[%clk 0:02:52]}  Be7 {[%clk 0:02:42]} 7. c3 {[%clk 0:02:51]}  e5 {[%clk 0:02:37]} 8. Rd1 {[%clk 0:02:47]}  Bg4 {[%clk 0:02:26]} 9. Na3 {[%clk 0:02:41]}  O-O {[%clk 0:02:25]} 10. Nc4 {[%clk 0:02:39]}  Re8 {[%clk 0:02:20]} 11. d3 {[%clk 0:02:35]}  Bf8 {[%clk 0:02:13]} 12. Bg5 {[%clk 0:02:33]}  h6 {[%clk 0:02:07]} 13. Bxf6 {[%clk 0:02:32]}  Qxf6 {[%clk 0:02:07]} 14. Ne3 {[%clk 0:02:30]}  Be6 {[%clk 0:01:56]} 15. a4 {[%clk 0:02:28]}  g6 {[%clk 0:01:47]} 16. Nd2 {[%clk 0:02:26]}  h5 {[%clk 0:01:42]} 17. Ndc4 {[%clk 0:02:15]}  b6 {[%clk 0:01:27]} 18. Rf1 {[%clk 0:02:10]}  Rad8 {[%clk 0:01:07]} 19. Nd5 {[%clk 0:01:49]}  Bxd5 {[%clk 0:00:50]} 20. exd5 {[%clk 0:01:49]}  Na5 {[%clk 0:00:43]} 21. Na3 {[%clk 0:01:30]}  Qe7 {[%clk 0:00:41]} 22. Rab1 {[%clk 0:01:26]}  f5 {[%clk 0:00:38]} 23. b4 {[%clk 0:01:23]}  Nb7 {[%clk 0:00:37]} 24. Nb5 {[%clk 0:01:16]}  a6 {[%clk 0:00:34]} 25. Na7 {[%clk 0:01:15]}  Qf6 {[%clk 0:00:18]} 26. Nc6 {[%clk 0:01:09]}  Rd7 {[%clk 0:00:19]} 27. d4 {[%clk 0:01:04]}  e4 {[%clk 0:00:10]} 28. Qxa6 {[%clk 0:00:58]}  f4 {[%clk 0:00:06]} 29. Rbe1 {[%clk 0:00:54]}  f3 {[%clk 0:00:05]} 30. Bh3 {[%clk 0:00:54]}  Rc7 {[%clk 0:00:04]} 31. Qxb6 {[%clk 0:00:51]}  Qg7 {[%clk 0:00:01]} 32. Be6+ {[%clk 0:00:49]}  Kh8 {[%clk 0:00:02]} 33. Rxe4 {[%clk 0:00:49]} 1-0


[Site "https://www.chess.com"]

[Event "Titled Tuesday Blitz September 14 2021"]
[White "Novik, Maxim"]
[Black "Sonis, Francesco"]
[WhiteFideId "4102924"]
[BlackFideId "895733"]
[WhiteElo "2390"]
[BlackElo "2373"]
[Result "0-1"]
[Round "10"]
[TimeControl "180+1"]
[Date "2021.09.15"]
[WhiteClock "0:00:17"]
[BlackClock "0:01:06"]

1. Nf3 {[%clk 0:03:00]}  d5 {[%clk 0:02:58]} 2. g3 {[%clk 0:03:00]}  Nd7 {[%clk 0:02:58]} 3. Bg2 {[%clk 0:02:56]}  e5 {[%clk 0:02:55]} 4. d3 {[%clk 0:02:56]}  Ngf6 {[%clk 0:02:53]} 5. O-O {[%clk 0:02:57]}  Bc5 {[%clk 0:02:53]} 6. c3 {[%clk 0:02:54]}  Bb6 {[%clk 0:02:53]} 7. e4 {[%clk 0:02:49]}  dxe4 {[%clk 0:02:52]} 8. dxe4 {[%clk 0:02:48]}  O-O {[%clk 0:02:53]} 9. Qe2 {[%clk 0:02:46]}  a5 {[%clk 0:02:52]} 10. Nbd2 {[%clk 0:02:44]}  c6 {[%clk 0:02:51]} 11. Nc4 {[%clk 0:02:44]}  Bc7 {[%clk 0:02:51]} 12. a4 {[%clk 0:02:43]}  b6 {[%clk 0:02:50]} 13. Rd1 {[%clk 0:02:36]}  Ba6 {[%clk 0:02:51]} 14. Bf1 {[%clk 0:02:35]}  Qe7 {[%clk 0:02:49]} 15. Qc2 {[%clk 0:02:35]}  Qe6 {[%clk 0:02:48]} 16. b3 {[%clk 0:02:31]}  Nc5 {[%clk 0:02:39]} 17. Ba3 {[%clk 0:02:14]}  Nfxe4 {[%clk 0:02:38]} 18. Re1 {[%clk 0:02:14]}  f5 {[%clk 0:02:37]} 19. Bh3 {[%clk 0:02:03]}  Qf6 {[%clk 0:02:23]} 20. Bxc5 {[%clk 0:01:58]}  bxc5 {[%clk 0:02:21]} 21. Rad1 {[%clk 0:01:13]}  Rad8 {[%clk 0:02:16]} 22. Rxd8 {[%clk 0:01:12]}  Rxd8 {[%clk 0:02:17]} 23. Bxf5 {[%clk 0:01:11]}  Qxf5 {[%clk 0:02:10]} 24. Qxe4 {[%clk 0:01:11]}  Qxe4 {[%clk 0:02:10]} 25. Rxe4 {[%clk 0:01:11]}  Rd3 {[%clk 0:02:10]} 26. Nfxe5 {[%clk 0:01:06]}  Rxc3 {[%clk 0:02:10]} 27. Nxc6 {[%clk 0:01:04]}  Kf8 {[%clk 0:02:08]} 28. Re7 {[%clk 0:00:59]}  Bd8 {[%clk 0:01:41]} 29. Ra7 {[%clk 0:00:37]}  Bxc4 {[%clk 0:01:40]} 30. bxc4 {[%clk 0:00:36]}  Bf6 {[%clk 0:01:41]} 31. Nxa5 {[%clk 0:00:34]}  Bd4 {[%clk 0:01:38]} 32. Nc6 {[%clk 0:00:30]}  Rxc4 {[%clk 0:01:38]} 33. a5 {[%clk 0:00:30]}  Ra4 {[%clk 0:01:39]} 34. a6 {[%clk 0:00:30]}  h5 {[%clk 0:01:33]} 35. Kf1 {[%clk 0:00:26]}  Ra2 {[%clk 0:01:32]} 36. Nxd4 {[%clk 0:00:26]}  cxd4 {[%clk 0:01:32]} 37. f4 {[%clk 0:00:25]}  d3 {[%clk 0:01:27]} 38. Ke1 {[%clk 0:00:25]}  Kg8 {[%clk 0:01:27]} 39. h3 {[%clk 0:00:24]}  Kh7 {[%clk 0:01:25]} 40. g4 {[%clk 0:00:24]}  h4 {[%clk 0:01:25]} 41. f5 {[%clk 0:00:23]}  Kh6 {[%clk 0:01:20]} 42. Kd1 {[%clk 0:00:23]}  Ra5 {[%clk 0:01:13]} 43. Kd2 {[%clk 0:00:22]}  Ra3 {[%clk 0:01:14]} 44. Ke3 {[%clk 0:00:20]}  d2+ {[%clk 0:01:14]} 45. Kxd2 {[%clk 0:00:20]}  Rxh3 {[%clk 0:01:15]} 46. Rf7 {[%clk 0:00:19]}  Ra3 {[%clk 0:01:13]} 47. a7 {[%clk 0:00:18]}  h3 {[%clk 0:01:13]} 48. Kc2 {[%clk 0:00:16]}  h2 {[%clk 0:01:12]} 49. Rf8 {[%clk 0:00:15]}  Kh7 {[%clk 0:01:10]} 50. g5 {[%clk 0:00:16]}  Rxa7 {[%clk 0:01:06]} 51. g6+ {[%clk 0:00:16]}  Kh6 {[%clk 0:01:06]} 52. Rh8+ {[%clk 0:00:16]}  Kg5 {[%clk 0:01:07]} 53. Rxh2 {[%clk 0:00:17]}  Ra2+ {[%clk 0:01:06]} 0-1


[Site "https://www.chess.com"]